Cogmind - Beta 17.1 @@@ ROGUE MODE // 2026.09.22 @ 10:57:51 Player: Miniluz Result: Destroyed by Shrapnel Trap Performance ------------- Evolutions (0) 0 Regions Visited (3) 600 Robots Destroyed (42) 210 Value Destroyed (1171) 1171 Prototype IDs (15) 300 Alien Tech Used (0) 0 Bonus (-376) -376 TOTAL SCORE: 1905 Bonus ------- Follower Combat Kills 7 Friendly Fire -383 Cogmind --------- Core Integrity 0/250 Matter 300/300 Energy 176/180 System Corruption 0% Temperature Cool (2) Movement Treading (260) Ox1 Location -10/Subcaves Parts ------- > --- POWER (1) -------- Meta Core > --- PROPULSION (2+1) - Spiked Treads Spiked Treads > --- UTILITY (2+1) ---- Large Storage Unit Signal Interpreter Light Armor Plating (+) > --- WEAPON (2+1) ----- Beamcaster Advanced Beam Cannon (+) Advanced Beam Cannon > --- INVENTORY (15) --- Subdweller Power Source Wheel Small Storage Unit Subdweller Optics Sensor Array Improved Terrain Scanner Terrain Scan Processor Light Armor Plating Light Armor Plating Light Armor Plating Improved Light Armor Plating Makeshift Light Armor Plating Rocket Launcher Mini Grenade Launcher Peak State ------------ > --- POWER ------------ Meta Core > --- PROPULSION ------- Spiked Treads Spiked Treads > --- UTILITY ---------- Large Storage Unit Signal Interpreter Light Armor Plating > --- WEAPON ----------- Beamcaster Advanced Beam Cannon Advanced Beam Cannon > --- INVENTORY -------- Subdweller Power Source Wheel Small Storage Unit Subdweller Optics Sensor Array Improved Terrain Scanner Terrain Scan Processor Light Armor Plating Light Armor Plating Light Armor Plating Improved Light Armor Plating Makeshift Light Armor Plating Rocket Launcher Mini Grenade Launcher [Rating: 33] Favorites ----------- Power Ion Engine Engine Ion Engine Power Core Meta Core Propulsion Spiked Treads Treads Spiked Treads Leg Aluminum Leg Wheel Wheel Utility Large Storage Unit Device Improved Terrain Scanner Storage Large Storage Unit Processor Signal Interpreter Protection Light Armor Plating Weapon Advanced Beam Cannon Energy Gun Beamcaster Energy Cannon Advanced Beam Cannon Ballistic Gun Assault Rifle Launcher Rocket Launcher Special Weapon Mining Laser Build | -11 -10 -10 -10 ------- Run | Yrd Mat Min Sub Slots Evolved . | . . . . Power . | . . . . Propulsion . | . . . . Utility . | . . . . Weapon . | . . . . Parts Attached 29 | 9 9 6 5 Power 4 | 1 2 . 1 Engine 2 | 1 1 . . Core 2 | . 1 . 1 Reactor . | . . . . Propulsion 7 | 3 . 2 2 Treads 4 | 2 . . 2 Leg 2 | . . 2 . Wheel 1 | 1 . . . Hover . | . . . . Flight . | . . . . Utility 9 | 3 3 2 1 Device 4 | 2 2 . . Storage 3 | 1 1 1 . Processor 1 | . . 1 . Hackware . | . . . . Protection 1 | . . . 1 Artifact . | . . . . Weapon 9 | 2 4 2 1 Energy Gun 1 | . . . 1 Energy Cannon 2 | . 2 . . Ballistic Gun 2 | 2 . . . Ballistic Cannon . | . . . . Launcher 3 | . 1 2 . Special Weapon 1 | . 1 . . Impact Weapon . | . . . . Slashing Weapon . | . . . . Piercing Weapon . | . . . . Special Melee Weapon . | . . . . Unidentified Prototypes 1 | . 1 . . Parts Lost 3 | . 2 . 1 Power 1 | . 1 . . Propulsion . | . . . . Utility 1 | . 1 . . Weapon 1 | . . . 1 Highest Loss Streak 1 | . 1 . 1 To Critical Strikes . | . . . . Average Backups 13 | 2 10 14 14 Power 1 | . 1 1 1 Propulsion 1 | . 1 1 1 Utility 7 | . 4 9 8 Weapon 3 | . 2 3 3 Tool/Special . | . . . . Unused Backups 19 | . 4 2 13 Power 3 | . 1 . 2 Propulsion 1 | . . . 1 Utility 12 | . 1 1 10 Weapon 3 | . 2 1 . Tool/Special . | . . . . Average Slot Usage (%) 96 | . 99 100 93 Engine 6 | . 3 14 5 Core 6 | . 10 . 6 Treads 22 | . 28 19 21 Leg 2 | . . 8 1 Device 3 | . 13 1 . Storage 12 | . 14 14 11 Processor 8 | . . 12 11 Protection 3 | . . . 6 Energy Gun 2 | . . . 4 Energy Cannon 7 | . 3 4 11 Ballistic Gun 4 | . 18 . . Launcher 8 | . . 23 7 Special Weapon 4 | . 5 . 5 Peak Build Rating 33 | 9 16 12 33 Average Rating 17 | 5 11 10 24 On Entrance 8 | . 9 12 11 Avg Prop Armor Cover (%) 8 | 18 . 7 . Naked Turns . | . . . . Heaviest Build 42 | 15 34 33 42 Greatest Support 40 | 40 40 40 40 Greatest Overweight (x) 1 | . . 1 1 Average Overweight (x) . | . . . . Largest Inventory Capacity 15 | 8 15 15 15 Average Capacity 14 | 7 14 15 15 Most Carried 15 | 4 15 15 15 Average Carried 13 | 2 10 14 14 Final Capacity 15 | 8 15 15 15 Final Carried 15 | 4 14 15 14 Class Distribution -------------------- 67% | Mutant 32% | Tank Dominant Class ---------------- Mutant | -10/Materials Mutant | -10/Mines Tank | -10/Subcaves Resources | -11 -10 -10 -10 ----------- Run | Yrd Mat Min Sub Matter Collected 1246 | 167 433 315 331 Remotely . | . . . . Salvage Created 1329 | 67 448 75 739 Parts 80 | 8 24 6 42 Haulers Intercepted 1 | . 1 . . Recyclers Shooed 1 | . 1 . . Parts Field Recycled . | . . . . Retrieved Matter . | . . . . Parts Self-Destructed 11 | . . . 11 Prevented . | . . . . Parts Restored . | . . . . Kills | -11 -10 -10 -10 ------- Run | Yrd Mat Min Sub Combat Hostiles Destroyed 33 | . 9 6 18 Guns 10 | . 6 . 4 Cannons 5 | . 3 . 2 AOE 16 | . . 6 10 Classes Destroyed 12 | 1 6 1 4 Builder 1 | . 1 . . Tunneler 4 | 3 1 . . Hauler 1 | . 1 . . Recycler 1 | . 1 . . Turret 2 | . . . 2 Watcher 1 | . 1 . . Swarmer 5 | . 2 . 3 Grunt 10 | . 7 3 . Sentry 1 | . . . 1 Subdweller 14 | . . . 14 Assembled 3 | . . 3 . Thug 1 | . . . 1 Guerrilla 1 | . . . 1 Best Kill Streak 5 | 3 3 3 5 Combat Bots Only 3 | . 3 3 3 Max Kills in Single Turn 3 | 1 1 2 3 Gunslinging . | . . . . Exploded 3 | . . 2 3 Melee . | . . . . Uniques/NPCs Destroyed . | . . . . Combat | -11 -10 -10 -10 -------- Run | Yrd Mat Min Sub Hostile Shots Fired 113 | . 59 13 41 Missed 31 | . 14 3 14 Hits 82 | . 45 10 27 Projectile 82 | . 45 10 27 AOE 1 | . . . 1 Critical Strikes 2 | . . . 2 Damage Taken 1180 | . 515 117 548 Core 264 | . 108 19 137 Absorbed by Shields . | . . . . Core Remaining (%) 100 | 100 . . . Volleys Fired 120 | 5 65 10 40 Largest 3 | 2 2 2 3 Hottest 243 | 40 168 101 243 Shots Fired 226 | 10 124 18 74 Gun 115 | 10 91 . 14 Cannon 56 | . 19 5 32 Launcher 27 | . . 13 14 Special 28 | . 14 . 14 Kinetic 101 | 10 91 . . Thermal 98 | . 33 5 60 Explosive 27 | . . 13 14 Electromagnetic . | . . . . Robot Hit Streak 37 | 3 11 3 37 Robot Miss Streak 7 | 1 7 5 2 Penetration Max . | . . . . Secondary Targets . | . . . . Shots Hit Robots 127 | 6 70 6 45 Core Hits 70 | 3 22 7 38 Critical Kills 1 | . . . 1 Critical Parts Destroyed 2 | . 2 . . Critical Strikes 5 | . 2 . 3 Burn 2 | . . . 2 Meltdown 1 | . . . 1 Destroy 2 | . 2 . . Melee Attacks . | . . . . Impact . | . . . . Slashing . | . . . . Piercing . | . . . . Sneak Attacks . | . . . . Combat Hostiles . | . . . . Follow-up Attacks . | . . . . Damage Inflicted 3473 | 69 1028 538 1838 Guns 1057 | 69 734 . 254 Cannons 761 | . 247 63 451 Explosions 1606 | . . 473 1133 Melee . | . . . . Ramming 25 | . 23 2 . Kinetic 803 | 69 734 . . Thermal 1039 | . 271 63 705 Explosive 1606 | . . 473 1133 Electromagnetic . | . . . . Impact . | . . . . Slashing . | . . . . Piercing . | . . . . Highest Corruption . | . . . . Average Corruption . | . . . . Corruption Purged . | . . . . Corruption Blocked . | . . . . Overload Shots . | . . . . Overflow Damage 49 | . 2 26 21 Projectiles 22 | . 2 20 . Explosions 27 | . . 6 21 Melee . | . . . . Knockbacks . | . . . . Impact . | . . . . Kinetic . | . . . . Secondary . | . . . . Self-Inflicted Damage 12 | . . 12 . Shots 1 | . . 1 . Rammed 7 | . 7 . . Targets Rammed 8 | . 7 1 . Kicked 1 | . . 1 . Crushed . | . . . . Highest Temperature 476 | . 475 124 476 Average Temperature 105 | . 119 45 105 Received Heat Transfer 427 | . 231 76 120 Effects 2 | . 2 . . Shutdowns 1 | . 1 . . Matter Decay 1 | . 1 . . Siege Activations . | . . . . Martial Activations . | . . . . Shielding Activations . | . . . . Robots Disrupted . | . . . . Combat Hostiles . | . . . . Robots Corrupted . | . . . . Combat Hostiles . | . . . . Parts Fried . | . . . . Impact Corruptions . | . . . . Robots Melted 1 | . . . 1 Combat Hostiles 1 | . . . 1 Parts Melted 8 | . 3 . 5 Heat Transferred 2011 | . 494 111 1406 Parts Sabotaged . | . . . . Parts Stolen . | . . . . Parts Stripped . | . . . . Power Chain Reactions . | . . . . Alert | -11 -10 -10 -10 ------- Run | Yrd Mat Min Sub Maximum Alert Level . | . . . . Low Security (%) 100 | 100 100 100 . Level 1 . | . . . . Level 2 . | . . . . Level 3 . | . . . . Level 4 . | . . . . Level 5 . | . . . . High Security . | . . . . Max Security . | . . . . Peak Influence 107 | 10 107 80 . Initial 30 | . . 30 . Average 16 | 1 24 7 . Influence Increases 827 | 15 510 152 150 Destroy 0b10 Robot/C 380 | . 180 80 120 Destroy 0b10 Robot/NC 45 | 15 25 5 . Destroy Leader 64 | . 54 10 . Allied During Kill 1 | . . 1 . Successful Hack 30 | . 30 . . Disable Machine 30 | . 30 . . Destroy Structure 52 | . 11 41 . Lose Combat Pursuer 225 | . 180 15 30 Influence Decreases 821 | 15 433 188 185 Entered New Map 69 | . . 47 22 Time Decay 732 | 15 413 141 163 Lost Part 20 | . 20 . . Squads Dispatched 2 | . 2 . . Investigation . | . . . . Extermination . | . . . . Reinforcement 2 | . 2 . . Assault . | . . . . Garrison . | . . . . Intercept . | . . . . Searches Triggered . | . . . . Construction Impeded . | . . . . Haulers Reinforced . | . . . . Active Scanning Responses . | . . . . Cargo Convoy Interrupts . | . . . . Stealth | -11 -10 -10 -10 --------- Run | Yrd Mat Min Sub Distress Signals 3 | . 3 . . Communications Jammed . | . . . . Distress Signals . | . . . . Times Spotted 75 | . 37 9 29 Peak Tracking Total 7 | . 7 3 6 Tactical Retreats 11 | . 9 1 1 Traps | -11 -10 -10 -10 ------- Run | Yrd Mat Min Sub Traps Triggered 1 | . . . 1 Indirectly . | . . . . Trap Hack Attempts . | . . . . Triggered . | . . . . Disarmed . | . . . . Reprogrammed . | . . . . Reused . | . . . . Traps Extracted . | . . . . Installed . | . . . . Triggered . | . . . . Machines | -11 -10 -10 -10 ---------- Run | Yrd Mat Min Sub Machines Disabled 6 | . 2 . 4 Max in Single Turn 3 | . 1 . 3 Machines Repaired . | . . . . Machines Dismantled . | . . . . Machines Sabotaged . | . . . . Overloaded Fab Kills . | . . . . Hacking | -11 -10 -10 -10 --------- Run | Yrd Mat Min Sub Machines Accessed 9 | . 7 . 2 Terminals 5 | . 5 . . Fabricators . | . . . . Repair Stations . | . . . . Recycling Units 2 | . 2 . . Scanalyzers . | . . . . Garrison Access . | . . . . Total Hacks 29 | . 16 . 13 Successful 20 | . 7 . 13 Failed 9 | . 9 . . Catastrophic 2 | . 2 . . Database Lockouts . | . . . . Manual 15 | . 15 . . Terminals 9 | . 9 . . Fabricators . | . . . . Repair Stations . | . . . . Recycling Units 7 | . 7 . . Scanalyzers . | . . . . Garrison Access . | . . . . Terminal Hacks 14 | . 1 . 13 Record 12 | . . . 12 Branch Access Points 1 | . 1 . . Proto ID Catalog 1 | . . . 1 Fabricator Hacks . | . . . . Repair Station Hacks . | . . . . Recycling Unit Hacks 1 | . 1 . . Retrieve Components 1 | . 1 . . Scanalyzer . | . . . . Garrison Access Hacks . | . . . . Unauthorized Hacks 5 | . 5 . . Terminals 2 | . 2 . . Track 2 | . 2 . . Fabricators . | . . . . Repair Stations . | . . . . Recycling Units 3 | . 3 . . Monitor 1 | . 1 . . Mask 2 | . 2 . . Scanalyzers . | . . . . Garrison Access . | . . . . Data Cores Recovered . | . . . . Used . | . . . . Hacking Detections 5 | . 5 . . Full Trace Events 1 | . 1 . . Feedback Events . | . . . . Feedback Blocked . | . . . . Robot Schematics Acquired . | . . . . Robots Built . | . . . . Authchips . | . . . . Time . | . . . . Total Robot Build Rating . | . . . . Part Schematics Acquired . | . . . . Parts Built . | . . . . Authchips . | . . . . Time . | . . . . Total Part Build Rating . | . . . . Part Studies Acquired . | . . . . Parts Repaired . | . . . . Time . | . . . . Parts Recycled . | . . . . Recycled Matter . | . . . . Retrieved Matter . | . . . . Retrieved Components 1 | . 1 . . Parts Scanalyzed . | . . . . Part Schematics Acquired . | . . . . Parts Damaged . | . . . . Bothacking | -11 -10 -10 -10 ------------ Run | Yrd Mat Min Sub Used RIF Installer . | . . . . Robots Hacked . | . . . . Non-combat . | . . . . Combat . | . . . . Robot Hacks Applied . | . . . . Relay Couplers Released . | . . . . Fabnet Peak Effective % . | . . . . Robots Rewired . | . . . . Allies Hacked . | . . . . Hacks Repelled . | . . . . Allies | -11 -10 -10 -10 -------- Run | Yrd Mat Min Sub Total Allies 1 | . . 1 . Largest Group 1 | . . 1 1 Highest-Rated Group 31 | . . 31 31 Highest-Rated Ally 31 | . . 31 31 Total Orders . | . . . . Ally Attacks 15 | . . 9 6 Total Damage 209 | . . 106 103 Kills 4 | . . 4 . Allies Corrupted . | . . . . Allies Melted . | . . . . Intel | -11 -10 -10 -10 ------- Run | Yrd Mat Min Sub Active Infowar (turns) 1823 | 49 1685 89 . Terrain 1788 | 14 1685 89 . Seismic 35 | 35 . . . Robot Analysis Total . | . . . . Derelict Logs Recovered 3 | . . 2 1 Drone Launches . | . . . . Drone Recoveries . | . . . . Exploration | -11 -10 -10 -10 ------------- Run | Yrd Mat Min Sub Turns Passed 6603 | 118 1713 1304 3468 Spaces Moved 3511 | 58 801 692 1960 Core 3 | 3 . . . Treads 3285 | 51 801 559 1874 Legs 219 | . . 133 86 Wheels 4 | 4 . . . Hover . | . . . . Flight . | . . . . Fastest Speed 50 | 50 160 160 160 Average Speed 166 | 148 160 174 166 Slowest Speed 260 | 160 160 240 260 Overloaded Moves . | . . . . Propulsion Burnouts . | . . . . Robots Hopped . | . . . . Potential Cave-ins . | . . . . Cave-ins Triggered . | . . . . Exploration Rate (%) 72 | 5 94 94 95 Regions Visited 3 Branch Regions 2 Pre-discovered Areas 2 | . . 1 1 Known Exits Taken 2 | . 1 1 . Unknown Exits Taken 1 | 1 . . . Scrap Searched 8 | . . 1 7 Spaces Dug 3 | . 3 . . Terrain Destroyed 151 | . 7 71 73 Melee . | . . . . Projectile 8 | . 7 1 . AOE 143 | . . 70 73 Terrain Rammed . | . . . . Walls Destroyed . | . . . . Machines Disabled . | . . . . Actions | -11 -10 -10 -10 --------- Run | Yrd Mat Min Sub Total 3985 | 76 1077 769 2063 Wait 244 | 1 164 49 30 Move 3508 | 57 800 691 1960 Hop . | . . . . Pick Up 35 | 3 19 4 9 Fast Attach 13 | 8 1 2 2 Attach 4 | . 1 . 3 Detach 1 | 1 . . . Swap 27 | 1 10 6 10 Drop 25 | . 10 6 9 Fire 120 | 5 65 10 40 Melee . | . . . . Ram . | . . . . Kick 1 | . . 1 . Crush 7 | . 7 . . Escape Stasis . | . . . . Rewire . | . . . . Trap . | . . . . Miscellaneous . | . . . . Route ------- -11/Scrapyard -10/Materials (discovered 4 exits: *Mat x2 / *Min / *Sub) -10/Mines (discovered 3 exits: *Mat x2 / *Sub) -10/Subcaves (discovered 3 exits: *Mat x2 / *Rec) History --------- Turn | Location | Event 27 | -11/Scrapyard | Discovered new exit (range 16) 119 | -11/Scrapyard | Entered Materials 248 | -10/Materials | Discovered new exit (range 15) 314 | -10/Materials | Build established: Mutant 724 | -10/Materials | Discovered new exit (range 8) 771 | -10/Materials | Identified exit to Mines 1510 | -10/Materials | Discovered new exit (range 4) 1602 | -10/Materials | Discovered new exit (range 11) 1832 | -10/Materials | Entered Mines 1906 | -10/Mines | Discovered new exit (range 7) 1922 | -10/Mines | Identified exit to Materials 1952 | -10/Mines | Received a Rocket Launcher from a helpful Derelict 1995 | -10/Mines | Discovered exit to Materials (range 5) 2057 | -10/Mines | Core integrity fell below 50% 2067 | -10/Mines | Escorted by a lone wolf Derelict 2161 | -10/Mines | Assembled infested the area 2166 | -10/Mines | Assisted by a Guerilla fighting off Assembled 2467 | -10/Mines | Identified exit to Subcaves 3136 | -10/Mines | Entered Subcaves 3136 | -10/Subcaves | Accompanied by 1 ally 3280 | -10/Subcaves | Ambushed by swarm of Subdwellers 3280 | -10/Subcaves | Ambushed by Subdwellers from Twisted Machinery 3281 | -10/Subcaves | Ambushed by Subdwellers from Twisted Machinery 3285 | -10/Subcaves | Ambushed by Subdwellers from Twisted Machinery 3291 | -10/Subcaves | Ambushed by Subdwellers from Twisted Machinery 3324 | -10/Subcaves | Lost 3 allies 3442 | -10/Subcaves | Discovered new exit (range 14) 3477 | -10/Subcaves | Identified exit to Recycling 4418 | -10/Subcaves | Visited 4L-MR0's lab 4439 | -10/Subcaves | Found Meta Core 4442 | -10/Subcaves | Attached Meta Core, gained temporary slots: Propulsion, Utility, Weapon 4730 | -10/Subcaves | Build established: Tank 5268 | -10/Subcaves | Visited Clippyterm 5273 | -10/Subcaves | Learned Research machine intel 5922 | -10/Subcaves | Shifting Twisted Machinery released Battle Rifle 5926 | -10/Subcaves | Shifting Twisted Machinery released Sub. Power Source 6137 | -10/Subcaves | Discovered new exit (range 5) 6146 | -10/Subcaves | Identified exit to Materials 6188 | -10/Subcaves | Discovered exit to Materials (range 10) 6324 | -10/Subcaves | Ambushed by angry Subdweller bent on revenge 6604 | -10/Subcaves | Destroyed by Shrapnel Trap Last Messages --------------- 06216_ 4I-VR2(R) destroyed. 06248_ JT-1T4(u) deconstructs Twisted Machinery. 06299_ Mining Laser destroyed. 06307_ JT-1T4(u) deconstructs Twisted Machinery. 06313_ JT-1T4(u) suffers critical hit (Burn). 06313_ JT-1T4(u) cries out in pain. 06313_ JT-1T4(u) destroyed. 06320_ Y-45 Defender suffers critical hit (Burn). 06323_ Y-45 Defender destroyed. 06324_ LK-Z6L(R) angrily emerges from the Twisted Machinery. 06324_ LK-Z6L(R): "LEAVESUB!" 06329_ Heat Sink fries itself beyond repair. 06333_ Sub. Optics melted. 06333_ LK-Z6L(R) destroyed. 06338_ Lgt. Treads fries itself beyond repair. 06352_ Acquired 10 matter. 06401_ Subatomizers dissect the Wheel. 06546_ Subatomizers dissect the Wheel, destroying it. 06604_ Triggered Shrapnel Trap. 06604_ An expanding cloud of shrapnel blasts out in all directions. Map ----- +----------------------------------------------------+ | ####??## #??????# ####??# #???# | | ##???????####???????# ##?# ##???# | | #????????????????????# #?## ##????? | | ## ##????????????????????# ##?#% #?????? | | #### ##?????#####??????###### ### #?????? | | #??####?????## ##????## ##?????? | | #???????????# #????# ##??????? | | #???????????#### ##???## ] ##???????? | | ???????????????# ###### ## ##????????? | | ?###???????##### ### #?????????? | | ?# #####???# ####?## #?????????? | | ## ##??## #?????####?????????? | | # #??## ##?????????????????? | | # #??# #????????????????? | | # ## #??# ## #????????????????? | | #?####??# ### ##????????????????? | | #??????## ##??##?????????????????? | | ##????## ## ### ##??????????????????????? | | ###### #######?####???????????????????????? | | #??????????????????????????????????? | | # ###???????????##???????????????????? | | ####### ##????###??# ##??????????????????? | | ??????# #???## ?? ##?????????????????? | | ??????# #???# ## ^ #?????????????????? | | ??????## ##??# #?????????????????? | | ???????## #???# @ #?????????????????? | | ????????## ##???## ### ##?????????????????? | | ??????######## ##????## # # ##?????????????????? | | ??????# #??# ##?????# #?????????????????? | | ??????# #?#####????# ##?????????????????? | | ??????# #??# ##???# #?????????????????? | | ???????# ### ###?### # #?????????????????? | | ????????# #??## ##?????????????????? | | ?????????# #??# ## #?????????????????? | | ?????????# ####### ### # ##?????????????????? | | ????????## ###?????# # ##?????????????????? | | ??????### #######?# ##????????????????? | | ??????# #?# #????????????????? | | ??????# ##?## ## #????????????????# | | ??????# ## ##???###### #???????????????## | | ??????# #?## ########## ##???????????????# | | ??????# #??## # ##???????????????## | | ??????##??## # ###????????????????# | | ?????????## # #??????????????????# | | ????????## # ##??????????????????# | | ????????# #?????????????####???# | | ????????# ## ## #?############# ###### | | ????????# ### ## #### "## ## # | | ????????# ##?## ### "## | | ????????# ##???## ## | +----------------------------------------------------+ Best States ------------- Heat Dissipation 25 Energy Generation 17 Energy Capacity 250 Matter Stores 300 Matter Capacity 300 Sight Range 16 Terrain Scan Range 16 Terrain Scan Density 10 Armor Coverage 150 Evasion (%) 40 Recoil Reduction 2 Item Schematics ----------------- None Robot Schematics ------------------ None Fabricated ------------ Nothing Repaired ---------- Nothing Studied --------- None Alien Tech Used ----------------- None Achievements -------------- I Survived The Infestation Mistaken Identity Myspace Challenges ------------ None Game ------ Seed MomentumDisposablePlating Manual? 0 Play Time 00:59:39 Cumulative 10.4 hours Start 2026.09.22 @ 09:24:26 End 2026.09.22 @ 10:57:51 Sessions 1 Manual Loads 0 Difficulty Rogue Special Mode None Game No. 9 Rogue 9 Adventurer 0 Explorer 0 Win Type - Total 0 Types 0/0/0/0/0/0/0/0/0/0 Lore% 16 Gallery% 15 Achievement% 17 Wizard Run 0 Options --------- Layout 0 ASCII 0 Keyboard 1 Movement Vi Keybinds 0 Fullscreen 2 Font 24/Terminus Map View 76x50 Zoom Use 0% Tactical HUD 1 Map Filters NONE Filters NONE Steam 1 RUN: 5670ac56-3fa8-40be-a6bb-a8f0f392b092